Cogmind - Beta 13 @@@ ROGUE MODE // 2024.03.12 @ 03:15:58 Player: Grim Result: Destroyed by G-47 Trooper with Particle Gun Performance ------------- Evolutions (0) 0 Regions Visited (2) 400 Robots Destroyed (13) 65 Value Destroyed (293) 293 Prototype IDs (0) 0 Alien Tech Used (0) 0 Bonus (0) 0 TOTAL SCORE: 758 Bonus ------- None Cogmind --------- Core Integrity 0/250 Matter 373/400 Energy 160/160 System Corruption 10% Temperature Warm (144) Movement Rolling (115) Ox1 Location -10/Mines Parts ------- > --- POWER (1) -------- Light Nuclear Core > --- PROPULSION (2) --- Compact Wheel (fused) > --- UTILITY (2) ------ Medium Storage Unit Medium Matter Pod > --- WEAPON (2) ------- Beam Cannon Heavy Battle Rifle > --- INVENTORY (10) --- Compact Wheel Compact Wheel Transport Network Coupler Propulsion Shielding Light Armor Plating Small Laser Grenade Launcher Datajack Mining Laser Shock Trap Peak State ------------ > --- POWER ------------ Light Nuclear Core > --- PROPULSION ------- Compact Wheel Compact Wheel > --- UTILITY ---------- Medium Storage Unit Medium Matter Pod > --- WEAPON ----------- Beam Cannon Heavy Battle Rifle > --- INVENTORY -------- Compact Wheel Compact Wheel Transport Network Coupler Propulsion Shielding Light Armor Plating Small Laser Grenade Launcher Datajack Mining Laser Shock Trap [Rating: 13] Favorites ----------- Power Light Nuclear Core Engine Ion Engine Power Core Light Nuclear Core Propulsion Compact Wheel Wheel Compact Wheel Utility Medium Matter Pod Storage Medium Matter Pod Processor Signal Interpreter Weapon Beam Cannon Energy Gun Small Laser Energy Cannon Beam Cannon Ballistic Gun Assault Rifle Build | -11 -10 -10 ------- Run | Yrd Mat Min Slots Evolved . | . . . Power . | . . . Propulsion . | . . . Utility . | . . . Weapon . | . . . Parts Attached 14 | 5 8 1 Power 3 | 1 2 . Engine 2 | 1 1 . Core 1 | . 1 . Reactor . | . . . Propulsion 3 | 2 1 . Treads . | . . . Leg . | . . . Wheel 3 | 2 1 . Hover . | . . . Flight . | . . . Utility 3 | . 3 . Device . | . . . Storage 2 | . 2 . Processor 1 | . 1 . Hackware . | . . . Protection . | . . . Artifact . | . . . Weapon 5 | 2 2 1 Energy Gun 2 | 1 1 . Energy Cannon 1 | . 1 . Ballistic Gun 2 | 1 . 1 Ballistic Cannon . | . . . Launcher . | . . . Special Weapon . | . . . Impact Weapon . | . . . Slashing Weapon . | . . . Piercing Weapon . | . . . Special Melee Weapon . | . . . Unidentified Prototypes . | . . . Corrupted Parts 1 | . 1 . System Corruption 10 | . 10 . Parts Lost 4 | . 2 2 Power . | . . . Propulsion 1 | . . 1 Utility . | . . . Weapon 3 | . 2 1 Highest Loss Streak 1 | . 1 1 To Critical Strikes . | . . . Average Slot Usage (%) 91 | . 90 93 Engine 5 | . 9 . Core 8 | . 4 14 Wheel 27 | . 28 27 Storage 19 | . 14 28 Processor 2 | . 4 . Energy Gun 8 | . 13 . Energy Cannon 8 | . 5 14 Ballistic Gun 8 | . 8 8 Naked Turns . | . . . Heaviest Build 24 | 9 21 24 Greatest Support 32 | 26 32 32 Greatest Overweight (x) . | . . . Average Overweight (x) . | . . . Largest Inventory Capacity 10 | 5 10 10 Average Capacity 7 | 5 6 10 Most Carried 10 | 5 7 10 Average Carried 5 | 1 3 9 Final Capacity 10 | 5 10 10 Final Carried 10 | . 7 10 Class Distribution -------------------- 100% | Mutant Dominant Class ---------------- Mutant | -10/Materials Mutant | -10/Mines Resources | -11 -10 -10 ----------- Run | Yrd Mat Min Matter Collected 513 | 220 268 25 Remotely . | . . . Salvage Created 423 | . 304 119 Parts 24 | . 20 4 Haulers Intercepted . | . . . Recyclers Shooed . | . . . Parts Field Recycled . | . . . Retrieved Matter . | . . . Parts Self-Destructed . | . . . Prevented . | . . . Kills | -11 -10 -10 ------- Run | Yrd Mat Min Combat Hostiles Destroyed 12 | . 9 3 Guns 6 | . 6 . Cannons 5 | . 2 3 AOE 1 | . 1 . Classes Destroyed 3 | . 3 . Watcher 1 | . 1 . Swarmer 6 | . 3 3 Grunt 6 | . 6 . Best Kill Streak 4 | . 4 3 Combat Bots Only 3 | . 3 3 Max Kills in Single Turn 1 | . 1 1 Gunslinging . | . . . Exploded 1 | . 1 . Melee . | . . . Uniques/NPCs Destroyed . | . . . Combat | -11 -10 -10 -------- Run | Yrd Mat Min Hostile Shots Fired 71 | . 44 27 Missed 17 | . 14 3 Damage Taken 744 | . 513 231 Core 251 | . 176 75 Absorbed by Shields . | . . . Core Remaining (%) 100 | 100 . . Volleys Fired 42 | . 31 11 Largest 2 | . 2 2 Hottest 100 | . 100 100 Shots Fired 76 | . 61 15 Gun 53 | . 49 4 Cannon 23 | . 12 11 Launcher . | . . . Special . | . . . Kinetic 23 | . 19 4 Thermal 46 | . 35 11 Explosive . | . . . Electromagnetic 7 | . 7 . Robot Hit Streak 10 | . 10 4 Robot Miss Streak 4 | . 3 4 Penetration Max . | . . . Secondary Targets . | . . . Shots Hit Robots 46 | . 40 6 Core Hits 19 | . 14 5 Critical Kills . | . . . Critical Parts Destroyed 1 | . 1 . Critical Strikes 2 | . 2 . Destroy 1 | . 1 . Corrupt 1 | . 1 . Melee Attacks . | . . . Impact . | . . . Slashing . | . . . Piercing . | . . . Sneak Attacks . | . . . Combat Hostiles . | . . . Follow-up Attacks . | . . . Damage Inflicted 679 | . 541 138 Guns 453 | . 435 18 Cannons 226 | . 106 120 Explosions . | . . . Melee . | . . . Ramming . | . . . Kinetic 196 | . 178 18 Thermal 395 | . 275 120 Explosive . | . . . Electromagnetic 88 | . 88 . Impact . | . . . Slashing . | . . . Piercing . | . . . Highest Corruption 10 | . 10 10 Average Corruption 10 | . 10 10 Corruption Purged . | . . . Corruption Blocked . | . . . Effects 20 | . 11 9 Message Errors 1 | . 1 . Matter Fused 7 | . 5 2 Energy Discharges 2 | . 1 1 Parts Fused 1 | . . 1 Data Loss (minor) 3 | . 1 2 Data Loss (major) 1 | . 1 . Misfires 1 | . . 1 Misdirections 1 | . 1 . Weapon Failures 3 | . 1 2 Overload Shots . | . . . Overflow Damage . | . . . Projectiles . | . . . Explosions . | . . . Melee . | . . . Knockbacks . | . . . Impact . | . . . Kinetic . | . . . Secondary . | . . . Self-Inflicted Damage . | . . . Shots . | . . . Rammed . | . . . Targets Rammed . | . . . Kicked . | . . . Crushed . | . . . Highest Temperature 225 | . 225 150 Average Temperature 70 | . 71 68 Received Heat Transfer 216 | . 162 54 Siege Activations . | . . . Robots Corrupted . | . . . Combat Hostiles . | . . . Parts Fried . | . . . Impact Corruptions . | . . . Robots Melted . | . . . Combat Hostiles . | . . . Parts Melted . | . . . Heat Transferred 881 | . 622 259 Parts Sabotaged . | . . . Parts Stolen . | . . . Parts Stripped . | . . . Power Chain Reactions . | . . . Alert | -11 -10 -10 ------- Run | Yrd Mat Min Peak Influence 202 | . 202 84 Initial 19 | . . 19 Average 78 | . 84 79 Maximum Alert Level 1 | . 1 . Low Security (%) 99 | 100 98 100 Level 1 . | . 1 . Level 2 . | . . . Level 3 . | . . . Level 4 . | . . . Level 5 . | . . . High Security . | . . . Max Security . | . . . Squads Dispatched 2 | . 2 . Investigation 1 | . 1 . Extermination . | . . . Reinforcement 1 | . 1 . Assault . | . . . Garrison . | . . . Intercept . | . . . Searches Triggered . | . . . Construction Impeded . | . . . Haulers Reinforced . | . . . Active Scanning Responses . | . . . Cargo Convoy Interrupts . | . . . Stealth | -11 -10 -10 --------- Run | Yrd Mat Min Distress Signals 1 | . 1 . Communications Jammed . | . . . Distress Signals . | . . . Times Spotted 18 | . 13 5 Peak Tracking Total 4 | . 4 3 Tactical Retreats . | . . . Traps | -11 -10 -10 ------- Run | Yrd Mat Min Traps Triggered 2 | . 2 . Indirectly . | . . . Trap Hack Attempts . | . . . Triggered . | . . . Disarmed . | . . . Reprogrammed . | . . . Reused . | . . . Traps Extracted . | . . . Installed . | . . . Triggered . | . . . Most Traps Carried 1 | . . 1 Machines | -11 -10 -10 ---------- Run | Yrd Mat Min Machines Disabled . | . . . Max in Single Turn . | . . . Machines Repaired . | . . . Machines Dismantled . | . . . Machines Sabotaged . | . . . Overloaded Fab Kills . | . . . Hacking | -11 -10 -10 --------- Run | Yrd Mat Min Machines Accessed 3 | . 3 . Terminals 2 | . 2 . Fabricators . | . . . Repair Stations . | . . . Recycling Units 1 | . 1 . Scanalyzers . | . . . Garrison Access . | . . . Total Hacks 5 | . 5 . Successful 4 | . 4 . Failed 1 | . 1 . Catastrophic . | . . . Database Lockouts . | . . . Manual . | . . . Terminals 4 | . 4 . Fabricators . | . . . Repair Stations . | . . . Recycling Units 1 | . 1 . Scanalyzers . | . . . Garrison Access . | . . . Terminal Hacks 3 | . 3 . Record 1 | . 1 . Hauler Manifests 1 | . 1 . Zone Layout 1 | . 1 . Fabricator Hacks . | . . . Repair Station Hacks . | . . . Recycling Unit Hacks 1 | . 1 . Recycle Component 1 | . 1 . Scanalyzer . | . . . Garrison Access Hacks . | . . . Unauthorized Hacks . | . . . Terminals . | . . . Fabricators . | . . . Repair Stations . | . . . Recycling Units . | . . . Scanalyzers . | . . . Garrison Access . | . . . Data Cores Recovered . | . . . Used . | . . . Hacking Detections 2 | . 2 . Full Trace Events . | . . . Feedback Events . | . . . Feedback Blocked . | . . . Robot Schematics Acquired . | . . . Robots Built . | . . . Authchips . | . . . Time . | . . . Total Robot Build Rating . | . . . Part Schematics Acquired . | . . . Parts Built . | . . . Authchips . | . . . Time . | . . . Total Part Build Rating . | . . . Parts Repaired . | . . . Time . | . . . Parts Recycled 1 | . 1 . Recycled Matter . | . . . Retrieved Matter . | . . . Retrieved Components . | . . . Parts Scanalyzed . | . . . Part Schematics Acquired . | . . . Parts Damaged . | . . . Bothacking | -11 -10 -10 ------------ Run | Yrd Mat Min Used RIF Installer . | . . . Robots Hacked . | . . . Non-combat . | . . . Combat . | . . . Robot Hacks Applied . | . . . Relay Couplers Released . | . . . Fabnet Peak Effective % . | . . . Robots Rewired . | . . . Allies Hacked . | . . . Hacks Repelled . | . . . Allies | -11 -10 -10 -------- Run | Yrd Mat Min Total Allies . | . . . Largest Group . | . . . Highest-Rated Group . | . . . Highest-Rated Ally . | . . . Total Orders . | . . . Ally Attacks . | . . . Total Damage . | . . . Kills . | . . . Allies Corrupted . | . . . Allies Melted . | . . . Intel | -11 -10 -10 ------- Run | Yrd Mat Min Robot Analysis Total . | . . . Derelict Logs Recovered . | . . . Drone Launches . | . . . Drone Recoveries . | . . . Exploration | -11 -10 -10 ------------- Run | Yrd Mat Min Turns Passed 709 | 35 434 240 Spaces Moved 577 | 33 336 208 Core 10 | 10 . . Treads . | . . . Legs . | . . . Wheels 567 | 23 336 208 Hover . | . . . Flight . | . . . Fastest Speed 50 | 50 90 100 Average Speed 95 | 77 93 100 Slowest Speed 100 | 90 100 100 Overloaded Moves . | . . . Propulsion Burnouts . | . . . Robots Hopped . | . . . Cave-ins Triggered . | . . . Exploration Rate (%) 35 | 3 54 49 Regions Visited 2 Branch Regions 1 Pre-discovered Areas . | . . . Known Exits Taken . | . . . Unknown Exits Taken 2 | 1 1 . Scrap Searched . | . . . Spaces Dug . | . . . Terrain Destroyed . | . . . Melee . | . . . Projectile . | . . . AOE . | . . . Terrain Rammed . | . . . Walls Destroyed . | . . . Machines Disabled . | . . . Actions | -11 -10 -10 --------- Run | Yrd Mat Min Total 658 | 42 392 224 Wait . | . . . Move 575 | 32 335 208 Hop . | . . . Pick Up 24 | 5 15 4 Fast Attach . | . . . Attach 11 | 5 5 1 Detach 1 | . 1 . Swap 3 | . 3 . Drop 2 | . 2 . Fire 42 | . 31 11 Melee . | . . . Ram . | . . . Kick . | . . . Crush . | . . . Escape Stasis . | . . . Rewire . | . . . Trap . | . . . Miscellaneous . | . . . Route ------- -11/Scrapyard -10/Materials -10/Mines History --------- Turn | Location | Event 5 | -11/Scrapyard | Discovered new exit (range 15) 36 | -11/Scrapyard | Entered Materials 223 | -10/Materials | System corruption reached 10% 286 | -10/Materials | Discovered new exit (range 15) 294 | -10/Materials | Core integrity fell below 50% 302 | -10/Materials | Build established: Mutant 470 | -10/Materials | Entered Mines 478 | -10/Mines | Core integrity fell below 20% 570 | -10/Mines | A weapon hastily lodged in a ceiling crevice suddenly fell to the ground 612 | -10/Mines | Found a hidden stash of uninstalled traps 710 | -10/Mines | Destroyed by G-47 Trooper with Particle Gun Last Messages --------------- 00521_ K-01 Serf collects debris. 00522_ R-06 Scavenger collects Lgt. Ion Engine. 00524_ K-01 Serf collects debris. 00570_ System corrupted: Com. Wheel fused. 00570_ A Hvy. Battle Rifle has been hastily shoved under some rubble with a note attached: "To battle!" 00572_ Acquired Hvy. Battle Rifle. 00603_ System corrupted: FCS attempts to trigger Beam Cannon. 00603_ System corrupted: Beam Cannon misfires. 00612_ A stash of uninstalled traps is collected here! 00615_ Acquired Shock Trap. 00648_ System corrupted: Component data lost. 00669_ System corrupted: Matter fused (-10). 00695_ System corrupted: Component data lost. 00702_ Com. Wheel destroyed. 00704_ System corrupted: Beam Cannon failed to cycle. Map ----- +----------------------------------------------------+ | | | | | | | | | | | | | | | ???????????????????????????????????? | | ?????????????????????????####??????? | | ??????????????????######## ##?????? | | ?????????????????## ######? | | ????????????????## ## | | ??????????????### """ # | | ?????????????## ## """ | | ?????????????# #### """ | | ?????????????# ##?# | | ?????????????## #### ## | | ??????????????# ### ##### ## | | ??????????????# ### #???# ### | | ??????????????# ??## #???# ?# | | ??????????###?# ??## ##???## ?? | | ??????????# ? ??# ##????## ? | | ??????????# #####??# ##????## # | | ??????????# #??????## #????## | | ??????????# #???????# #????? | | ??????????#@#???????# ###?????? | | ??????????# #???????# #?????????# | | ??????????#g######### #?????????## | | ??????????# #???????????## | | ??????????# ##### #####????????????# | | ??????????# #???# #????????????????? | | ??????????# ??? ????????????????? | | ??????????# ?? ###???????????????? | | ??????????# ??????????????????? | | ??????????# """??????????????????? | | ??????????# """??????????????????? | | ??????????# """??????????????????? | | ??????????# ?????????? ???????? | | ???????????#####????????# #### | | ?????????????????????????# | | ?????????????????????????# | | ????????????????????????# ## | | ????????????????????????? ???? | | ????????????????????????? #?????? | | ???????????????????????????????????? | | ???????????????????????????????????? | | ???????????????????????????????????? | | ???????????????????????????????????? | | ???????????????????????????????????? | | ???????????????????????????????????? | +----------------------------------------------------+ Best States ------------- Heat Dissipation 25 Energy Generation 14 Energy Capacity 250 Matter Stores 400 Matter Capacity 400 Sight Range 16 Terrain Scan Density 10 Evasion (%) 50 Item Schematics ----------------- None Robot Schematics ------------------ None Fabricated ------------ Nothing Alien Tech Used ----------------- None Achievements -------------- None Challenges ------------ None Game ------ Seed ColdLaserCloak Manual? 0 Play Time 00:14:52 Cumulative 11.8 hours Start 2024.03.12 @ 02:51:28 End 2024.03.12 @ 03:15:58 Sessions 1 Manual Loads 0 Difficulty Rogue Special Mode None Game No. 29 Rogue 12 Adventurer 17 Explorer 0 Win Type - Total 0 Types 0/0/0/0/0/0/0/0/0 Lore% 12 Gallery% 17 Achievement% 12 Wizard Run 0 Options --------- Layout 1 ASCII 0 Keyboard 0 Movement Mouse Keybinds 0 Fullscreen 1 Font 24/Smallcaps Map View 50x35 Zoom Use 0% Tactical HUD 1 Map Filters NONE Filters NONE Steam 1 RUN: 6bb4a7bd-d7e4-4fb0-b5ca-54752e0087a4